bitfinex/quotes_SOLUSD_20240808
["timestamp","ask_amount","ask_price","bid_price","bid_amount"]
[1723157480440,41.22,159.77,159.75,6.2595]
[1723157480836,47.479,159.77,159.71,6.2609]
[1723157481039,47.479,159.77,159.7,15.6535]
[1723157481254,41.22,159.74,159.7,15.6535]
[1723157482033,41.22,159.74,159.7,21.9151]
[1723157482362,41.22,159.71,159.67,7.0744637]
[1723157482764,6.0766,159.81,159.69,31.3095]
[1723157482969,41.22,159.76,159.69,31.3095]
[1723157483265,41.22,159.73,159.68,15.6553]
[1723157483440,41.22,159.73,159.68,21.9177]
[1723157483761,41.22,159.73,159.68,15.6553]
[1723157483962,41.22,159.76,159.74,6.2601]
[1723157484162,41.22,159.76,159.74,21.9099]
[1723157484662,1.56488322,159.85,159.83,6.2564]
[1723157484969,6.2749,159.92,159.86,6.2553]
[1723157484970,41.22,159.91,159.86,6.2553]
[1723157485270,41.22,159.91,159.79,51.2897]
[1723157485271,41.22,159.91,159.81,15.6431]
[1723157485441,41.22,159.88,159.81,15.6431]
[1723157485640,41.22,159.88,159.83,6.2566]
[1723157485868,41.22,159.88,159.84,6.2562]
[1723157486740,41.22,159.88,159.81,15.6431]
[1723157486951,41.22,159.88,159.79,31.2897]
[1723157486952,38.72,159.88,159.84,15.6402]
[1723157487157,41.22,159.91,159.86,6.2554]
[1723157487368,41.22,159.91,159.89,6.2542]
[1723157487583,41.22,159.91,159.87,15.6373]
[1723157487870,41.22,159.94,159.92,6.253]
[1723157488068,41.22,159.97,159.9,15.634]
[1723157488251,41.22,159.97,159.85,46.25041477]
[1723157488252,41.22,159.97,159.93,15.6312]
[1723157488451,41.22,159.97,159.93,21.8838]
[1723157488637,41.22,159.97,159.85,45.0]
[1723157488638,47.4714,159.97,159.91,6.2534]
[1723157488949,6.2515,159.96,159.89,21.8892]
[1723157489281,41.22,159.94,159.89,21.8892]
[1723157489565,41.22,159.94,159.9,6.2538]
[1723157489771,41.22,159.97,159.92,6.253]
[1723157489979,41.22,159.97,159.94,6.2521]
[1723157490175,47.43272251,160.0,159.93,1.25027238]
[1723157490468,47.43272251,160.0,159.89,51.2702]
[1723157490469,41.22,160.03,159.96,15.6288]
[1723157490644,41.22,160.03,159.96,21.88]
[1723157490841,41.22,160.03,159.96,15.6288]
[1723157491044,41.22,160.03,159.93,20.0]
[1723157491045,47.4665,160.09,160.02,6.2491]
[1723157491375,9.79530333,160.14,160.12,6.2452]
[1723157491576,41.22,160.16,160.11,15.6141]
[1723157491863,6.70357783,160.22,160.01,41.6605]
[1723157491864,9.79004025,160.2,160.01,41.6605]
[1723157492066,41.22,160.13,160.05,15.6197]
[1723157492249,41.22,160.13,160.07,6.247]
[1723157492452,41.22,160.13,160.09,15.6153]
[1723157492667,41.22,160.16,160.11,6.2454]
[1723157492976,41.22,160.16,160.1,6.2459]
[1723157493143,41.22,160.16,160.09,15.6153]
[1723157493538,41.22,160.16,160.09,21.8615]
[1723157493539,47.4638,160.16,160.09,21.8615]
[1723157493754,6.2423,160.2,160.13,6.2447]
[1723157493939,41.22,160.19,160.13,6.2448]
[1723157494140,47.4628,160.19,160.11,6.2455]
[1723157494370,41.22,160.16,160.09,21.8615]
[1723157494578,41.22,160.16,160.09,15.6153]
[1723157495079,41.22,160.16,160.09,21.8616]
[1723157495245,41.22,160.16,160.09,15.6153]
[1723157495443,41.22,160.16,160.13,6.2446]
[1723157495839,41.22,160.16,160.09,15.6153]
[1723157495840,47.4638,160.16,160.09,21.8614]
[1723157496051,41.22,160.16,160.09,15.6153]
[1723157496246,41.22,160.16,160.04,15.6202]
[1723157496443,41.22,160.13,160.05,1.24918026]
[1723157496656,41.22,160.16,160.05,1.24918026]
[1723157496852,41.22,160.16,160.03,20.0]
[1723157496853,41.22,160.13,160.08,15.6163]
[1723157497067,41.22,160.13,160.02,15.6227]
[1723157497272,41.22,160.1,160.02,15.6227]
[1723157497465,47.4673,160.07,160.0,6.2498]
[1723157497664,41.22,160.04,159.94,15.3668]
[1723157497876,35.6142,160.12,159.97,20.0]
[1723157498080,41.22,160.09,160.0,15.6248]
[1723157498457,41.22,160.06,160.0,15.6248]
[1723157498688,41.22,160.06,159.98,6.2505]
[1723157498689,20.0,160.05,159.98,6.2505]
[1723157498864,41.22,160.12,159.99,1.24971881]
[1723157499185,47.4678,160.06,160.0,15.624]
[1723157499566,65.0,160.11,160.03,6.2484]
[1723157499772,41.22,160.14,160.04,1.24951118]
[1723157499975,41.22,160.14,160.08,6.2468]
[1723157500161,41.22,160.14,160.01,21.24908117]
[1723157500488,41.22,160.14,160.07,15.6176]
[1723157500870,6.2454,160.12,160.03,15.622]
[1723157501067,41.22,160.08,160.03,15.622]
[1723157501481,41.22,160.08,160.03,6.2486]
[1723157501681,41.22,160.08,160.04,6.2483]
[1723157501878,41.22,160.11,160.06,6.2475]
[1723157502089,20.0,160.1,160.06,6.2475]
[1723157502389,41.22,160.11,160.05,15.6192]
[1723157502563,41.22,160.14,160.05,15.6192]
[1723157502761,41.22,160.14,160.08,15.6163]
[1723157503277,6.2442,160.15,160.08,15.6163]
[1723157503581,41.22,160.17,160.12,6.2452]
[1723157503888,47.4634,160.17,160.1,6.2458]
[1723157504386,41.22,160.18,160.11,1.24870832]
[1723157504593,47.463,160.18,160.08,15.6163]
[1723157504765,26.2434,160.17,160.11,6.2456]
[1723157505087,41.22,160.15,160.08,15.6163]
[1723157505287,6.2448,160.14,160.06,6.2475]
[1723157505491,47.4643,160.15,160.05,1.24926202]
[1723157505684,41.22,160.15,160.1,6.246]
[1723157505863,41.22,160.15,160.08,15.6166]
[1723157506059,41.22,160.15,160.12,6.2452]
[1723157506276,20.0,160.17,160.11,15.6136]
[1723157506679,47.4618,160.21,160.13,6.2446]
[1723157506863,47.4618,160.21,160.11,15.6136]
[1723157507072,6.2422,160.2,160.14,6.2444]
[1723157507470,41.22,160.21,160.15,6.244]
[1723157507683,47.4619,160.21,160.14,6.2444]
[1723157507883,41.22,160.15,160.07,15.6179]
[1723157508084,6.2446,160.14,160.08,6.2468]
[1723157508394,41.22,160.15,160.07,15.6179]
[1723157508692,41.22,160.15,160.03,20.0]
[1723157509199,20.0,160.14,160.09,6.2464]
[1723157509403,41.22,160.15,160.09,15.6156]
[1723157509694,41.22,160.15,160.11,6.2455]
[1723157509873,41.22,160.15,160.04,15.6203]
[1723157510076,6.2451,160.13,160.04,15.6203]
[1723157510393,6.2451,160.13,160.0,31.5018]
[1723157510394,6.2468,160.08,160.0,31.5018]
[1723157510774,6.2465,160.09,160.03,6.2487]
[1723157510969,6.2469,160.08,160.02,6.2491]
[1723157511287,41.22,160.09,160.03,15.6211]
[1723157511787,41.22,160.09,160.04,6.2483]
[1723157511997,41.22,160.12,160.03,15.6211]
[1723157512183,20.0,160.11,160.03,15.6211]
[1723157512504,41.22,160.09,159.99,15.6256]
[1723157512796,41.22,160.06,159.99,15.6256]
[1723157512994,16.2447,160.16,159.99,15.6256]
[1723157512995,16.2447,160.16,160.06,15.6187]
[1723157513191,41.22,160.13,160.06,15.6187]
[1723157513890,6.2441,160.15,160.09,21.8622]
[1723157514098,6.2441,160.15,160.04,1.24906826]
[1723157514099,41.22,160.16,160.07,6.2471]
[1723157514300,41.22,160.13,160.05,15.6197]
[1723157514471,41.22,160.1,160.01,15.6233]
[1723157514980,41.22,160.1,160.04,15.6206]
[1723157515294,6.2465,160.09,160.04,15.6206]
[1723157516096,41.22,160.1,160.06,6.2475]
[1723157516701,41.22,160.1,160.05,6.248]
[1723157516913,1.56184623,160.21,160.04,20.0]
[1723157517197,1.56184623,160.21,160.14,15.6111]
[1723157517198,41.22,160.19,160.14,15.6111]
[1723157517388,6.2433,160.17,160.1,15.6146]
[1723157517588,6.2429,160.18,160.1,15.6146]
[1723157517793,6.2429,160.18,160.12,6.2452]
[1723157518173,41.22,160.16,160.1,21.8603]
[1723157518488,6.2444,160.15,160.1,15.6146]
[1723157518796,41.22,160.16,160.1,16.8636399]
[1723157518992,41.22,160.16,160.1,21.8603]
[1723157519195,47.4639,160.16,160.1,21.8603]
[1723157519573,41.22,160.13,160.08,6.2465]
[1723157519795,41.22,160.13,160.06,15.6189]
[1723157519796,41.22,160.13,160.09,6.2464]
[1723157519987,41.22,160.13,160.06,15.6189]
[1723157520372,47.4661,160.1,160.04,6.248]
[1723157520575,41.22,160.1,160.06,6.2475]
[1723157521081,41.22,160.1,160.0,37.81666255]
[1723157521289,41.22,160.13,160.09,6.2464]
[1723157521494,41.22,160.13,160.08,15.6168]
[1723157521688,41.22,160.13,160.09,6.2464]
[1723157521895,47.4653,160.13,160.08,15.6168]
[1723157522099,41.22,160.13,160.08,21.8636]
[1723157522299,6.2457,160.11,160.04,21.8687]
[1723157522505,6.2457,160.11,160.05,6.248]
[1723157522678,41.22,160.13,160.04,15.6207]
[1723157522876,51.2454,160.12,160.04,15.6207]
[1723157523308,45.0,160.12,160.07,6.2472]
[1723157523481,45.0,160.12,160.04,15.6207]
[1723157523677,51.2456,160.12,160.04,15.6207]
[1723157524133,45.0,160.12,160.04,15.6207]
[1723157524279,41.22,160.1,160.02,6.2491]
[1723157524483,45.0,160.09,160.0,15.6242]
[1723157524684,47.4661,160.1,160.03,15.6219]
[1723157524905,41.22,160.07,160.03,15.6219]
[1723157525313,41.22,160.07,160.03,21.8705]
[1723157525512,41.22,160.07,160.03,15.6219]
[1723157526510,41.22,160.1,160.04,1.24967225]
[1723157526684,45.0,160.11,160.04,1.24967225]
[1723157527009,41.22,160.13,160.06,21.8659]
[1723157527190,20.0,160.12,160.06,15.6187]
[1723157528333,20.0,160.12,160.07,6.2471]
[1723157528620,6.2464,160.1,160.04,6.2482]
[1723157528800,6.2467,160.09,160.03,21.8704]
[1723157529203,6.2469,160.08,160.03,21.8704]
[1723157529919,6.2465,160.09,160.03,21.8704]
[1723157530219,45.0,160.08,160.03,21.8704]
[1723157530520,6.243,160.18,160.13,6.2448]
[1723157530720,41.22,160.16,160.13,6.2447]
[1723157530921,41.22,160.16,160.15,6.2441]
[1723157531219,41.22,160.19,160.13,15.612]
[1723157531425,41.22,160.19,160.14,6.2443]
[1723157532004,47.4626,160.19,160.14,6.2443]
[1723157532206,7.80432104,160.18,160.13,15.612]
[1723157532401,1.56113841,160.17,160.13,15.612]
[1723157532610,41.22,160.19,160.16,6.2437]
[1723157532809,41.22,160.19,160.17,6.2433]
[1723157533424,41.22,160.19,160.16,6.2437]
[1723157533725,41.22,160.19,160.15,15.6094]
[1723157533726,41.22,160.19,160.15,21.8535]
[1723157533923,41.22,160.19,160.13,6.2447]
[1723157534223,41.22,160.19,160.13,6.2445]
[1723157535002,45.0,160.18,160.14,6.2443]
[1723157535411,45.0,160.18,160.12,15.6132]
[1723157535412,41.22,160.19,160.15,6.2438]
[1723157536011,41.22,160.19,160.14,6.2444]
[1723157537124,41.22,160.19,160.1,31.2286]
[1723157537444,41.22,160.19,160.17,15.608]
[1723157537611,41.22,160.19,160.14,6.2441]
[1723157537811,41.22,160.19,160.15,6.2441]
[1723157538715,41.22,160.19,160.18,6.2429]
[1723157538925,41.22,160.19,160.16,15.6093]
[1723157539147,41.22,160.19,160.17,6.2433]
[1723157539437,41.22,160.19,160.16,15.6093]
[1723157539634,41.22,160.19,160.16,21.853]
[1723157539945,33.72,160.18,160.16,15.6093]
[1723157540310,33.72,160.2,160.16,15.6093]
[1723157540909,0.8116637,160.22,160.16,15.6093]
[1723157541107,33.72,160.21,160.19,15.6063]
[1723157541532,0.8116637,160.22,160.19,15.6063]
[1723157541730,0.8116637,160.22,160.21,6.2418]
[1723157544521,33.72,160.29,160.26,15.5996]
[1723157544718,33.72,160.29,160.28,6.239]
[1723157545018,39.9588,160.29,160.22,15.6027]
[1723157545222,33.72,160.27,160.22,15.6027]
[1723157545821,33.72,160.27,160.2,31.2105]
[1723157545822,33.72,160.27,160.25,6.2401]
[1723157546017,33.72,160.27,160.25,21.8402]
[1723157546221,8.03596569,160.37,160.2,31.2105]
[1723157546431,7.0469637,160.38,160.3,6.2382]
[1723157546734,33.72,160.34,160.28,15.5973]
[1723157546911,33.72,160.33,160.28,15.5973]
[1723157547111,33.72,160.31,160.28,15.5973]
[1723157547328,33.72,160.35,160.3,6.2381]
[1723157547532,33.72,160.35,160.28,16.84469671]
[1723157547735,7.0469637,160.38,160.28,15.5973]
[1723157547939,33.72,160.36,160.31,6.2377]
[1723157548111,33.72,160.36,160.3,6.238]
[1723157548312,33.72,160.32,160.25,15.5633]
[1723157548513,0.8116637,160.38,160.3,15.5954]
[1723157548724,33.72,160.35,160.31,6.2377]
[1723157548933,0.8116637,160.38,160.3,15.5954]
[1723157548934,33.72,160.36,160.3,15.5954]
[1723157549156,33.72,160.36,160.32,6.2374]
[1723157549341,0.8116637,160.38,160.3,15.5954]
[1723157549342,33.72,160.34,160.3,15.5954]
[1723157549545,0.8116637,160.38,160.3,15.5954]
[1723157549848,0.8116637,160.38,160.34,15.5917]
[1723157550318,0.8116637,160.38,160.34,21.8282]
[1723157550515,0.8116637,160.38,160.34,15.5917]
[1723157550843,0.8116637,160.38,160.34,21.8283]
[1723157551011,34.5316637,160.38,160.35,6.2361]
[1723157551216,0.8116637,160.38,160.34,15.5917]
[1723157551416,34.5316637,160.38,160.34,15.5917]
[1723157551635,33.72,160.36,160.29,22.0605]
[1723157552083,33.72,160.36,160.25,69.2833]
[1723157552084,33.72,160.3,160.25,15.5633]
[1723157552354,0.8116637,160.38,160.24,21.655]
[1723157552532,33.72,160.29,160.24,21.655]
[1723157552717,33.72,160.27,160.24,21.655]
[1723157552915,33.72,160.25,160.24,15.6011]
[1723157553727,41.17,160.29,160.24,21.8415]
[1723157553937,41.17,160.29,160.24,15.6011]
[1723157554833,41.17,160.29,160.22,6.2412]
[1723157555038,41.17,160.29,160.23,6.2408]
[1723157555564,0.8116637,160.38,160.27,15.5978]
[1723157555722,41.17,160.35,160.27,15.5978]
[1723157555925,41.17,160.35,160.22,20.0]
[1723157555926,41.17,160.32,160.22,15.6029]
[1723157556129,6.238,160.31,160.24,6.2403]
[1723157556318,41.17,160.29,160.22,15.6029]
[1723157556517,6.2359,160.36,160.26,15.599]
[1723157556732,41.17,160.33,160.27,6.2392]
[1723157557233,41.17,160.33,160.29,6.2385]
[1723157557449,41.17,160.36,160.3,15.5955]
[1723157557827,41.17,160.33,160.25,15.5996]
[1723157558348,41.17,160.33,160.29,21.835]
[1723157558654,41.17,160.36,160.32,6.2375]
[1723157558948,41.17,160.36,160.3,6.2379]
[1723157559173,41.17,160.36,160.29,15.5966]
[1723157559526,41.17,160.36,160.31,6.2378]
[1723157559751,41.17,160.36,160.29,21.8349]
[1723157560133,45.0,160.35,160.3,6.2382]
[1723157560327,41.17,160.36,160.3,6.2382]
[1723157560530,41.17,160.36,160.29,15.5966]
[1723157560843,41.17,160.33,160.29,15.5966]
[1723157561053,41.17,160.33,160.23,6.0432]
[1723157561346,41.17,160.33,160.29,15.5963]
[1723157561534,41.17,160.33,160.25,15.6005]
[1723157561729,41.17,160.3,160.25,15.6005]
[1723157561944,0.8116637,160.38,160.25,15.6005]
[1723157562253,41.17,160.29,160.25,15.6005]
[1723157562458,41.17,160.29,160.25,21.8406]
[1723157562748,41.17,160.29,160.25,15.6005]
[1723157563323,41.17,160.26,160.23,6.2409]
[1723157563554,41.17,160.26,160.21,21.8457]
[1723157563735,41.17,160.23,160.17,21.8512]
[1723157564056,22.0129,160.3,160.17,21.8512]
[1723157564351,22.0129,160.3,160.15,15.8164]
[1723157564352,15.8703,160.37,160.22,6.2914]
[1723157564554,41.17,160.36,160.31,15.5941]
[1723157564857,0.8116637,160.38,160.34,6.2366]
[1723157565232,7.0471637,160.38,160.31,15.5941]
[1723157565437,41.17,160.37,160.31,15.5941]
[1723157565644,41.17,160.37,160.35,6.2362]
[1723157565939,0.8116637,160.38,160.31,16.84133065]
[1723157566156,0.8116637,160.38,160.33,6.2369]
[1723157566339,0.8116637,160.38,160.31,15.5941]
[1723157566947,0.8116637,160.38,160.36,6.2359]
[1723157567152,0.8116637,160.38,160.34,15.5912]
[1723157567350,0.8116637,160.38,160.35,6.2363]
[1723157567562,0.8116637,160.38,160.36,6.2358]
[1723157568472,0.8116637,160.38,160.36,7.48275754]
[1723157568974,0.8116637,160.38,160.36,6.2358]
[1723157569866,0.8116637,160.38,160.34,21.8276]
[1723157570665,0.8116637,160.38,160.36,6.2358]
[1723157571258,0.8116637,160.38,160.35,1.2471488]
[1723157571259,0.8116637,160.38,160.34,21.8277]
[1723157572772,0.8116637,160.38,160.32,6.2371]
[1723157573077,41.17,160.37,160.33,15.5918]
[1723157573441,41.17,160.37,160.29,15.5962]
[1723157573642,41.17,160.37,160.31,6.2376]
[1723157573857,33.66,160.33,160.29,15.5962]
[1723157574248,33.66,160.31,160.29,21.8346]
[1723157574458,33.66,160.31,160.22,6.2914]
[1723157574651,33.66,160.32,160.24,15.601]
[1723157574652,33.66,160.26,160.24,15.601]
[1723157575064,16.3817,160.37,160.3,15.595]
[1723157575274,33.66,160.32,160.2,15.6082]
[1723157575592,33.66,160.27,160.2,15.6082]
[1723157575747,15.5831,160.43,160.31,6.2378]
[1723157576084,33.66,160.34,160.3,6.2382]
[1723157576252,33.66,160.32,160.25,15.6002]
[1723157577074,33.66,160.32,160.29,6.2386]
[1723157577380,33.66,160.32,160.3,6.2382]
[1723157577781,0.8116637,160.38,160.24,20.0]
[1723157577782,33.66,160.34,160.32,6.2373]
[1723157578252,33.66,160.34,160.27,15.5982]
[1723157578253,6.2375,160.32,160.27,15.5982]
[1723157578570,33.66,160.3,160.23,15.602]
[1723157579287,33.66,160.28,160.23,15.602]
[1723157579577,33.66,160.28,160.25,6.2401]
[1723157579779,33.66,160.3,160.25,6.2401]
[1723157579971,33.66,160.28,160.23,21.8426]
[1723157580172,33.66,160.28,160.23,15.602]
[1723157580363,33.66,160.24,160.18,15.6066]
[1723157580561,33.66,160.22,160.18,15.6066]
[1723157580775,33.66,160.31,160.2,33.66]
[1723157581071,33.66,160.31,160.25,15.5997]
[1723157581673,0.8116637,160.38,160.26,33.66]
[1723157581869,33.66,160.35,160.27,15.5982]
[1723157582072,6.2375,160.32,160.27,15.5982]
[1723157582379,39.8988,160.29,160.23,21.8427]
[1723157582578,33.66,160.29,160.25,6.24]
[1723157582778,39.8987,160.29,160.23,15.602]
[1723157582961,33.66,160.29,160.23,21.8426]
[1723157583167,33.66,160.29,160.23,15.602]
[1723157583372,6.239,160.28,160.23,15.602]
[1723157583578,33.66,160.27,160.2,6.2419]
[1723157583772,33.66,160.25,160.19,15.6061]
[1723157584074,39.9002,160.25,160.19,21.8486]
[1723157584383,6.2407,160.24,160.17,6.2431]
[1723157584600,6.2407,160.24,160.15,16.8581245]
[1723157584601,6.2424,160.2,160.15,15.6097]
[1723157584884,39.9026,160.19,160.11,15.6137]
[1723157585082,6.2431,160.18,160.12,6.2451]
[1723157585260,33.66,160.19,160.11,15.6137]
[1723157585461,33.66,160.15,160.09,6.2463]
[1723157585668,33.66,160.15,160.07,1.24912708]
[1723157585894,33.66,160.15,160.09,15.6155]
[1723157586057,33.66,160.15,160.09,21.8616]
[1723157586694,33.66,160.15,160.1,6.246]
[1723157587362,39.9044,160.15,160.09,21.8619]
[1723157587562,33.66,160.15,160.1,6.2459]
[1723157587794,33.66,160.15,160.09,21.8618]
[1723157588186,33.66,160.15,160.09,15.6155]
[1723157588695,33.66,160.15,160.05,15.6199]
[1723157588865,33.66,160.15,160.1,6.246]
[1723157589199,6.2823,160.16,160.08,15.6164]
[1723157589370,6.2446,160.14,160.08,15.6164]
[1723157589775,33.66,160.17,160.12,6.2451]
[1723157589997,20.0,160.18,160.12,6.2451]
[1723157590164,20.0,160.18,160.11,15.6135]
[1723157590364,17.5,160.18,160.08,33.66]
[1723157590579,6.2441,160.15,160.09,6.2464]
[1723157590890,33.66,160.17,160.1,6.246]
[1723157591273,33.66,160.17,160.1,15.6146]
[1723157591780,33.66,160.15,160.07,6.2469]
[1723157591971,33.66,160.15,160.07,6.2472]
[1723157592177,33.66,160.11,160.02,15.6224]
[1723157592386,1.56199169,160.1,160.02,15.6224]
[1723157592875,33.66,160.13,160.05,15.6194]
[1723157593079,33.66,160.15,160.05,33.66]
[1723157593273,6.2457,160.11,160.05,6.2477]
[1723157593676,39.9052,160.13,160.04,15.6206]
[1723157593974,6.2449,160.13,160.07,15.6174]
[1723157594595,33.66,160.13,160.07,15.6174]
[1723157594780,33.66,160.13,160.04,20.0]
[1723157595093,33.66,160.13,160.05,6.2479]
[1723157595389,6.2461,160.1,160.05,6.248]
[1723157595578,33.66,160.13,160.03,1.24957752]
[1723157595899,33.66,160.13,160.06,15.6187]
[1723157596873,33.66,160.11,160.06,15.6187]
[1723157597185,33.66,160.11,160.06,21.8663]
[1723157597491,33.66,160.11,160.06,15.6187]
[1723157597698,33.66,160.11,160.07,6.2471]
[1723157597995,39.9057,160.11,160.06,15.6187]
[1723157598173,33.66,160.09,160.04,6.2481]
[1723157598583,33.66,160.11,160.02,15.6223]
[1723157598789,33.66,160.11,160.06,6.2476]
[1723157599491,39.9065,160.09,160.05,15.6195]
[1723157599795,39.9065,160.09,160.03,6.2485]
[1723157600271,39.9065,160.09,160.01,15.6233]
[1723157600272,33.66,160.09,160.01,15.6233]
[1723157600592,33.66,160.07,159.97,33.66]
[1723157600791,33.66,160.05,160.0,21.8739]
[1723157601204,6.2484,160.04,159.95,49.4111]
[1723157601381,33.66,160.03,159.96,15.6283]
[1723157601573,33.66,160.01,159.96,21.8796]
[1723157601766,15.6726,160.08,159.96,15.6283]
[1723157602108,33.66,160.02,159.96,15.6283]
[1723157602595,33.66,159.99,159.94,6.2522]
[1723157602772,33.66,159.99,159.92,15.6327]
[1723157603304,15.6726,160.08,159.95,15.6289]
[1723157603611,39.908,160.05,159.95,15.6289]
[1723157603776,39.9089,160.03,159.97,6.2511]
[1723157603983,33.66,160.01,159.95,21.8804]
[1723157604185,39.9096,160.01,159.95,15.6289]
[1723157604486,33.66,160.01,159.96,6.2514]
[1723157605004,33.66,160.01,159.95,15.6289]
[1723157605183,33.66,159.99,159.95,15.6289]
[1723157605613,33.66,159.99,159.92,6.2528]
[1723157606113,33.66,159.95,159.91,15.6335]
[1723157606284,33.66,159.95,159.87,15.6372]
[1723157606605,33.66,159.93,159.87,15.6372]
[1723157607013,33.66,159.91,159.87,15.6372]
[1723157608307,33.66,159.89,159.83,0.8116637]
[1723157608485,33.66,159.87,159.83,0.8116637]
[1723157608683,33.66,159.87,159.83,7.0680637]
[1723157608903,33.66,159.87,159.83,0.8116637]
[1723157609227,33.66,159.87,159.76,6.6612]
[1723157609228,6.257,159.82,159.75,6.2594]
[1723157609411,33.66,159.8,159.75,6.2594]
[1723157609912,33.66,159.78,159.71,6.2611]
[1723157610207,49.3004,159.85,159.72,6.2608]
[1723157610208,33.66,159.76,159.72,6.2608]
[1723157610591,33.66,159.76,159.7,15.6541]
[1723157610809,33.66,159.76,159.71,6.261]
[1723157611114,33.66,159.76,159.7,21.9157]
[1723157611302,2.51630752,159.85,159.7,31.3072]
[1723157611518,2.51630752,159.85,159.71,1.2517556]
[1723157611519,15.6396,159.85,159.71,1.2517556]
[1723157611814,15.6396,159.85,159.67,0.8116637]
[1723157611815,33.66,159.72,159.67,0.8116637]
[1723157612020,6.1734,159.75,159.67,0.8116637]
[1723157612021,33.66,159.68,159.67,0.8116637]
[1723157612389,67.32,159.68,159.58,6.2661]
[1723157612587,33.66,159.62,159.58,6.2663]
[1723157612809,33.66,159.68,159.57,15.6663]
[1723157612810,33.66,159.6,159.57,15.6663]
[1723157613196,33.66,159.58,159.53,15.6709]
[1723157613694,33.66,159.56,159.53,15.6709]
[1723157613899,33.66,159.54,159.52,0.8116637]
[1723157614198,33.66,159.6,159.48,15.6756]
[1723157614199,33.66,159.53,159.48,15.6756]
[1723157614418,6.2634,159.66,159.47,53.66]
[1723157614720,33.66,159.61,159.56,15.6675]
[1723157614908,33.66,159.61,159.56,21.9346]
[1723157615414,33.66,159.65,159.61,6.2651]
[1723157615604,33.66,159.67,159.6,15.664]
[1723157615803,41.49,159.68,159.6,15.664]
[1723157615989,41.49,159.65,159.55,21.9355]
[1723157616190,1.56675397,159.64,159.56,6.2669]
[1723157616488,1.56669862,159.64,159.56,6.2669]
[1723157616693,20.0,159.64,159.57,6.2667]
[1723157617012,41.49,159.65,159.61,6.2651]
[1723157617214,41.49,159.68,159.64,6.2637]
[1723157617397,41.49,159.71,159.63,15.6608]
[1723157617600,41.49,159.71,159.67,6.2626]
[1723157617822,6.2618,159.7,159.63,21.9249]
[1723157618023,41.49,159.71,159.57,31.3338]
[1723157618206,41.49,159.71,159.62,15.6621]
[1723157618411,2.49938501,159.79,159.71,6.2612]
[1723157618412,6.2584,159.79,159.71,6.2612]
[1723157618614,41.49,159.78,159.7,15.6542]
[1723157618915,41.49,159.78,159.73,6.2602]
[1723157619596,41.49,159.81,159.73,15.6504]
[1723157619821,41.49,159.81,159.77,6.2589]
[1723157620317,47.7463,159.84,159.75,6.2595]
[1723157620506,41.49,159.84,159.76,15.6475]
[1723157620699,257.0,159.97,159.68,51.3108]
[1723157620700,41.49,159.87,159.72,41.49]